Cogmind - Beta 10.2 @@@ ROGUE MODE // 2021.07.18 @ 01:44:01 Player: User Result: Destroyed by S-27 Virus with Autogun Performance ------------- Evolutions (3) 1500 Regions Visited (6) 1200 Robots Destroyed (69) 345 Value Destroyed (2246) 2246 Prototype IDs (9) 180 Alien Tech Used (0) 0 Bonus (68) 68 TOTAL SCORE: 5539 Bonus ------- High Alert Combat Kills 11 Follower Combat Kills 196 Friendly Fire -139 Cogmind --------- Core Integrity 0/700 Matter 91/300 Energy 37/380 System Corruption 2% Temperature Cool (0) Movement Walking (120) Location -7/Factory Parts ------- > --- POWER (2) -------- Nuclear Core Nuclear Core > --- PROPULSION (3) --- Carbon-fiber Leg Carbon-fiber Leg > --- UTILITY (5) ------ Advanced Signal Interpreter Armor Integrity Analyzer Hardlight Generator > --- WEAPON (3) ------- Arc Projector > --- INVENTORY (4) ---- Light Deuterium Engine Remote Datajack Peak State ------------ > --- POWER ------------ Light Nuclear Core Light Nuclear Core > --- PROPULSION ------- Carbon-fiber Leg Carbon-fiber Leg Improved Carbon-fiber Leg > --- UTILITY ---------- Improved Heat Sink Improved Heat Sink Small Storage Unit Advanced Signal Interpreter Armor Integrity Analyzer > --- WEAPON ----------- Improved EM Pulse Cannon Gauss Rifle Advanced Assault Cannon > --- INVENTORY -------- Carbon-fiber Leg Shock Rifle Heavy Assault Rifle Advanced Assault Cannon [Rating: 41] Favorites ----------- Power Improved Ion Engine Engine Improved Ion Engine Power Core Light Nuclear Core Propulsion Aluminum Leg Leg Aluminum Leg Wheel Wheel Utility Small Storage Unit Device Improved Heat Sink Storage Small Storage Unit Processor Armor Integrity Analyzer Protection Hardened Light Armor Plating Weapon High-powered Shotgun Energy Gun EM Pulse Gun Energy Cannon Improved EM Pulse Cannon Ballistic Gun High-powered Shotgun Ballistic Cannon Advanced Assault Cannon Special Weapon Remote Datajack Build | -11 -10 -10 -9 -9 -8 -7 ------- Run | Scr Mat Min Mat Sto Mat Fac Slots Evolved 6 | . . . 2 . 2 2 Power 1 | . . . 1 . . . Propulsion 1 | . . . . . . 1 Utility 3 | . . . 1 . 1 1 Weapon 1 | . . . . . 1 . Parts Attached 82 | 6 . . 11 13 21 31 Power 17 | 1 . . 2 4 2 8 Engine 11 | 1 . . 2 4 1 3 Core 6 | . . . . . 1 5 Reactor . | . . . . . . . Propulsion 25 | 2 . . 3 4 7 9 Treads . | . . . . . . . Leg 22 | 2 . . 3 4 7 6 Wheel 3 | . . . . . . 3 Hover . | . . . . . . . Flight . | . . . . . . . Utility 14 | 1 . . 4 3 4 2 Device 7 | . . . 2 1 2 2 Storage 2 | 1 . . . . 1 . Processor 2 | . . . . 1 1 . Hackware . | . . . . . . . Protection 3 | . . . 2 1 . . Artifact . | . . . . . . . Weapon 26 | 2 . . 2 2 8 12 Energy Gun 8 | 2 . . . . 4 2 Energy Cannon 3 | . . . . . 2 1 Ballistic Gun 9 | . . . 2 2 2 3 Ballistic Cannon 4 | . . . . . . 4 Launcher . | . . . . . . . Special Weapon 2 | . . . . . . 2 Impact Weapon . | . . . . . . . Slashing Weapon . | . . . . . . . Piercing Weapon . | . . . . . . . Special Melee Weapon . | . . . . . . . Unidentified Prototypes 3 | . . . 1 . 1 1 Parts Lost 36 | . . . . 7 6 23 Power 8 | . . . . 1 2 5 Propulsion 9 | . . . . 2 . 7 Utility 5 | . . . . 2 . 3 Weapon 14 | . . . . 2 4 8 Highest Loss Streak 11 | . . . . 3 3 11 Average Slot Usage (%) 92 | . 85 85 100 98 90 85 Engine 14 | . 14 14 22 21 11 2 Core 2 | . . . . . 2 8 Leg 20 | . 28 28 22 21 18 17 Device 11 | . . . 11 16 9 11 Storage 9 | . 14 14 11 11 9 6 Processor 7 | . . . . 2 15 15 Protection 2 | . . . 11 2 2 . Energy Gun 5 | . 28 28 . . 11 1 Energy Cannon 1 | . . . . . 4 2 Ballistic Gun 12 | . . . 21 21 6 7 Ballistic Cannon 1 | . . . . . . 6 Naked Turns . | . . . . . . . Heaviest Build 38 | 12 12 12 29 32 38 34 Greatest Support 48 | 20 20 20 20 20 30 48 Greatest Overweight (x) 8 | 1 . . 1 2 1 8 Average Overweight (x) . | . . . 1 1 . . Largest Inventory Capacity 6 | 6 6 6 6 6 6 6 Average Capacity 5 | 5 6 6 6 6 6 5 Most Carried 6 | 5 6 6 6 6 6 6 Average Carried 5 | 2 5 6 5 5 5 4 Final Capacity 6 | 6 6 6 6 6 6 4 Final Carried 6 | 2 6 6 6 6 6 2 Class Distribution -------------------- 57% | Mutant 15% | Scavenger-Gunner 13% | Scavenger-Mutant 7% | Commander-Mutant 5% | Gunner Dominant Class ---------------- Mutant | -10/Materials Mutant | -10/Mines Mutant | -9/Materials Mutant | -9/Storage Scavenger-Mutant | -8/Materials Scavenger-Gunner | -7/Factory Resources | -11 -10 -10 -9 -9 -8 -7 ----------- Run | Scr Mat Min Mat Sto Mat Fac Matter Collected 2045 | 260 . . 171 558 324 732 Remotely . | . . . . . . . Salvage Created 2794 | . 28 . 395 764 660 947 Parts 151 | . 3 . 23 42 35 48 Haulers Intercepted . | . . . . . . . Recyclers Shooed 5 | . . . . 2 1 2 Parts Field Recycled . | . . . . . . . Retrieved Matter . | . . . . . . . Parts Self-Destructed . | . . . . . . . Prevented . | . . . . . . . Kills | -11 -10 -10 -9 -9 -8 -7 ------- Run | Scr Mat Min Mat Sto Mat Fac Combat Hostiles Destroyed 45 | . . . 9 14 10 12 Melee 1 | . . . . 1 . . Guns 32 | . . . 9 13 8 2 Cannons 12 | . . . . . 2 10 Classes Destroyed 12 | . 1 . 3 3 2 3 Worker 4 | . . . . 1 1 2 Builder 1 | . . . . . . 1 Recycler 9 | . . . . 2 . 7 Operator 2 | . . . . . 1 1 Drone 1 | . . . . 1 . . Watcher 8 | . 1 . 2 . 3 2 Swarmer 3 | . . . . . . 3 Grunt 22 | . . . 5 8 6 3 Brawler 1 | . . . 1 . . . Sentry 13 | . . . 3 6 2 2 Hunter 4 | . . . . . 2 2 Programmer 2 | . . . . . . 2 Best Kill Streak 4 | . 1 . 4 2 3 4 Combat Bots Only 4 | . . . 4 2 3 2 Max Kills in Single Turn 2 | . 1 . 2 2 2 1 Gunslinging 1 | . . . 1 1 . . Exploded . | . . . . . . . Melee 1 | . . . . 1 . . Uniques/NPCs Destroyed . | . . . . . . . Combat | -11 -10 -10 -9 -9 -8 -7 -------- Run | Scr Mat Min Mat Sto Mat Fac Damage Taken 5396 | . . 168 336 1326 861 2705 Core 1013 | . . 68 13 160 72 700 Absorbed by Shields 51 | . . . . 12 . 39 Core Remaining (%) 78 | 100 . 72 . 56 86 . Volleys Fired 243 | . 4 2 18 65 55 99 Largest 3 | . 2 2 2 2 3 3 Hottest 179 | . 80 80 50 50 179 145 Shots Fired 492 | . 8 4 36 126 104 214 Gun 338 | . 8 4 36 126 86 78 Cannon 151 | . . . . . 18 133 Launcher . | . . . . . . . Special 3 | . . . . . . 3 Kinetic 372 | . . . 36 126 43 167 Thermal 30 | . 4 2 . . 22 2 Explosive . | . . . . . . . Electromagnetic 89 | . 4 2 . . 39 44 Robot Hit Streak 10 | . 6 1 10 6 6 7 Robot Miss Streak 6 | . 1 2 6 6 5 6 Penetration Max 1 | . . . . . 1 1 Secondary Targets 4 | . . . 1 3 . . Max Gunslinging Chain 1 | . . . 1 1 . . Shots Hit Robots 262 | . 6 2 26 62 56 110 Core Hits 122 | . 1 . 18 34 30 39 Critical Hits 3 | . . . . . 1 2 Critical Kills . | . . . . . . . Critical Parts Destroyed 3 | . . . . . 1 2 Melee Attacks . | . . . . . . . Impact . | . . . . . . . Slashing . | . . . . . . . Piercing . | . . . . . . . Sneak Attacks . | . . . . . . . Combat Hostiles . | . . . . . . . Follow-up Attacks . | . . . . . . . Damage Inflicted 5857 | . 86 10 591 1229 1484 2457 Guns 3629 | . 86 10 591 1200 974 768 Cannons 1986 | . . . . . 343 1643 Explosions 112 | . . . . . 112 . Melee . | . . . . . . . Ramming 128 | . . . . 29 55 44 Kinetic 4197 | . . . 591 1200 526 1880 Thermal 383 | . 22 10 . . 349 2 Explosive . | . . . . . . . Electromagnetic 1149 | . 64 . . . 554 531 Impact . | . . . . . . . Slashing . | . . . . . . . Piercing . | . . . . . . . Highest Corruption 2 | . . . . . . 2 Average Corruption 1 | . . . . . . 1 Corruption Purged . | . . . . . . . Effects 3 | . . . . . . 3 Targeting Errors 3 | . . . . . . 3 Overload Shots . | . . . . . . . Overflow Damage 68 | . . . . . 26 42 Projectiles 53 | . . . . . 11 42 Explosions 15 | . . . . . 15 . Melee . | . . . . . . . Knockbacks 15 | . . . . . 1 14 Impact 2 | . . . . . 1 1 Kinetic 11 | . . . . . . 11 Secondary 2 | . . . . . . 2 Self-Inflicted Damage 31 | . . . . 11 12 8 Shots . | . . . . . . . Rammed 31 | . . . . 8 11 12 Targets Rammed 44 | . . . . 9 19 16 Kicked 13 | . . . . 1 8 4 Crushed . | . . . . . . . Highest Temperature 437 | . 36 36 99 60 437 386 Average Temperature 84 | . 16 21 29 16 78 151 Received Heat Transfer 1389 | . . . 153 528 360 348 Effects 5 | . . . . . 1 4 Energy Bleed 2 | . . . . . . 2 Interference 1 | . . . . . . 1 Matter Decay 1 | . . . . . . 1 Short Circuit 1 | . . . . . 1 . Siege Activations . | . . . . . . . Robots Corrupted 1 | . . . . . 1 . Combat Hostiles . | . . . . . . . Parts Fried 6 | . . . . . 3 3 Impact Corruptions . | . . . . . . . Robots Melted . | . . . . . . . Combat Hostiles . | . . . . . . . Parts Melted 1 | . . . . 1 . . Heat Transferred 644 | . 50 25 . . 544 25 Parts Sabotaged . | . . . . . . . Parts Stolen . | . . . . . . . Parts Stripped . | . . . . . . . Power Chain Reactions 2 | . . . . . 2 . Missiles Intercepted . | . . . . . . . Alert | -11 -10 -10 -9 -9 -8 -7 ------- Run | Scr Mat Min Mat Sto Mat Fac Peak Influence 406 | . 62 39 175 406 377 341 Initial 153 | . . 24 14 73 128 153 Average 185 | . 13 26 99 266 214 196 Maximum Alert Level 2 | . . . . 2 1 1 Low Security (%) 55 | 100 100 100 100 12 54 60 Level 1 43 | . . . . 83 45 39 Level 2 1 | . . . . 3 . . Level 3 . | . . . . . . . Level 4 . | . . . . . . . Level 5 . | . . . . . . . High Security . | . . . . . . . Max Security . | . . . . . . . Squads Dispatched 11 | . . . . 5 3 3 Investigation 5 | . . . . 3 2 . Extermination 1 | . . . . . . 1 Reinforcement 5 | . . . . 2 1 2 Assault . | . . . . . . . Garrison . | . . . . . . . Intercept . | . . . . . . . Construction Impeded 2 | . . . . . . 2 Haulers Reinforced . | . . . . . . . Stealth | -11 -10 -10 -9 -9 -8 -7 --------- Run | Scr Mat Min Mat Sto Mat Fac Distress Signals 9 | . . 1 . 5 1 2 Communications Jammed . | . . . . . . . Distress Signals . | . . . . . . . Times Spotted 107 | . 5 1 13 33 24 31 Peak Tracking Total 7 | . 2 1 3 5 7 5 Tactical Retreats 9 | . . . . . 2 7 Traps | -11 -10 -10 -9 -9 -8 -7 ------- Run | Scr Mat Min Mat Sto Mat Fac Traps Triggered 3 | . . . . 3 . . Indirectly . | . . . . . . . Trap Hack Attempts . | . . . . . . . Triggered . | . . . . . . . Disarmed 4 | . . . . . 4 . Reprogrammed . | . . . . . . . Reused . | . . . . . . . Traps Extracted . | . . . . . . . Installed . | . . . . . . . Triggered . | . . . . . . . Machines | -11 -10 -10 -9 -9 -8 -7 ---------- Run | Scr Mat Min Mat Sto Mat Fac Machines Disabled 4 | . . . 1 . 2 1 Max in Single Turn 2 | . . . 1 . 2 1 Garrison Access 1 | . . . . . . 1 Machines Sabotaged . | . . . . . . . Garrisons Compromised . | . . . . . . . Overloaded Fab Kills . | . . . . . . . Fab Network Shutdowns . | . . . . . . . Hacking | -11 -10 -10 -9 -9 -8 -7 --------- Run | Scr Mat Min Mat Sto Mat Fac Machines Accessed 24 | . 4 . 2 8 4 6 Terminals 17 | . 3 . 2 6 3 3 Fabricators 1 | . . . . . . 1 Repair Stations . | . . . . . . . Recycling Units 4 | . 1 . . 2 1 . Scanalyzers 1 | . . . . . . 1 Garrison Access 1 | . . . . . . 1 Total Hacks 66 | . 19 . 7 16 14 10 Successful 27 | . 7 . 3 7 7 3 Failed 39 | . 12 . 4 9 7 7 Catastrophic 4 | . 1 . . 1 1 1 Database Lockouts . | . . . . . . . Manual . | . . . . . . . Terminals 53 | . 16 . 7 13 11 6 Fabricators 1 | . . . . . . 1 Repair Stations . | . . . . . . . Recycling Units 9 | . 3 . . 3 3 . Scanalyzers 2 | . . . . . . 2 Garrison Access 1 | . . . . . . 1 Terminal Hacks 20 | . 4 . 3 5 6 2 Record 3 | . . . . 1 1 1 Prototype ID Bank 5 | . 1 . 1 2 1 . Open Door 1 | . . . . 1 . . Emergency Access Points 2 | . 1 . 1 . . . Alert Level 4 | . 1 . 1 . 1 1 Disarm Traps 2 | . . . . . 2 . Surveillance Status 1 | . . . . 1 . . Transport Status 2 | . 1 . . . 1 . Fabricator Hacks . | . . . . . . . Repair Station Hacks . | . . . . . . . Recycling Unit Hacks 6 | . 3 . . 2 1 . Report Inventory 1 | . 1 . . . . . Retrieve Components 5 | . 2 . . 2 1 . Scanalyzer . | . . . . . . . Garrison Access Hacks 1 | . . . . . . 1 Seal Access 1 | . . . . . . 1 Unauthorized Hacks . | . . . . . . . Terminals . | . . . . . . . Fabricators . | . . . . . . . Repair Stations . | . . . . . . . Recycling Units . | . . . . . . . Scanalyzers . | . . . . . . . Garrison Access . | . . . . . . . Data Cores Recovered 1 | . . . . . . 1 Used 1 | . . . . . . 1 Hacking Detections 18 | . 3 . 1 6 4 4 Full Trace Events 5 | . 1 . . 2 2 . Feedback Events . | . . . . . . . Feedback Blocked . | . . . . . . . Robot Schematics Acquired . | . . . . . . . Robots Built . | . . . . . . . Matter . | . . . . . . . Time . | . . . . . . . Total Robot Build Rating . | . . . . . . . Part Schematics Acquired . | . . . . . . . Parts Built . | . . . . . . . Matter . | . . . . . . . Time . | . . . . . . . Total Part Build Rating . | . . . . . . . Parts Repaired . | . . . . . . . Time . | . . . . . . . Parts Recycled . | . . . . . . . Recycled Matter . | . . . . . . . Retrieved Matter . | . . . . . . . Retrieved Components 20 | . . . . 10 10 . Parts Scanalyzed . | . . . . . . . Part Schematics Acquired . | . . . . . . . Parts Damaged . | . . . . . . . Bothacking | -11 -10 -10 -9 -9 -8 -7 ------------ Run | Scr Mat Min Mat Sto Mat Fac Used RIF Installer . | . . . . . . . Robots Hacked 1 | . . . . . . 1 Non-combat . | . . . . . . . Combat 1 | . . . . . . 1 Robot Hacks Applied 1 | . . . . . . 1 parse_system 1 | . . . . . . 1 Relay Couplers Released . | . . . . . . . Robots Rewired . | . . . . . . . Allies Hacked . | . . . . . . . Hacks Repelled . | . . . . . . . Allies | -11 -10 -10 -9 -9 -8 -7 -------- Run | Scr Mat Min Mat Sto Mat Fac Total Allies 10 | . . . . 10 . . Largest Group 10 | . . . . 10 . . Highest-Rated Group 88 | . . . . 88 . . Highest-Rated Ally 16 | . . . . 16 . . Total Orders . | . . . . . . . Ally Attacks 69 | . . . . 69 . . Total Damage 629 | . . . . 629 . . Kills 12 | . . . . 12 . . Allies Corrupted . | . . . . . . . Allies Melted . | . . . . . . . Intel | -11 -10 -10 -9 -9 -8 -7 ------- Run | Scr Mat Min Mat Sto Mat Fac Robot Analysis Total . | . . . . . . . Derelict Logs Recovered . | . . . . . . . Drone Launches 4 | . . . . 4 . . Drone Recoveries 2 | . . . . 2 . . Exploration | -11 -10 -10 -9 -9 -8 -7 ------------- Run | Scr Mat Min Mat Sto Mat Fac Turns Passed 3437 | 62 268 102 491 1079 593 842 Spaces Moved 1754 | 44 209 81 261 523 262 374 Core 36 | 20 . . . . . 16 Treads . | . . . . . . . Legs 1675 | 24 209 81 261 523 262 315 Wheels 43 | . . . . . . 43 Hover . | . . . . . . . Flight . | . . . . . . . Fastest Speed 50 | 50 120 120 150 150 120 86 Average Speed 135 | 109 120 120 150 150 135 120 Slowest Speed 450 | 120 120 120 150 180 150 450 Overloaded Moves . | . . . . . . . Propulsion Burnouts . | . . . . . . . Robots Hopped . | . . . . . . . Cave-ins Triggered . | . . . . . . . Exploration Rate (%) 31 | 5 38 29 32 79 22 14 Regions Visited 6 Branch Regions 2 Pre-discovered Areas 2 | . . 1 . 1 . . Known Exits Taken 1 | . . . . . 1 . Unknown Exits Taken 5 | 1 1 1 1 1 . . Scrap Searched . | . . . . . . . Spaces Dug . | . . . . . . . Terrain Destroyed 17 | . . . . . 7 10 Melee . | . . . . . . . Projectile 10 | . . . . . . 10 AOE 7 | . . . . . 7 . Terrain Rammed . | . . . . . . . Walls Destroyed . | . . . . . . . Machines Disabled . | . . . . . . . Actions | -11 -10 -10 -9 -9 -8 -7 --------- Run | Scr Mat Min Mat Sto Mat Fac Total 2358 | 57 218 82 329 688 405 579 Wait 109 | . . . 23 47 12 27 Move 1748 | 43 208 80 260 522 261 374 Hop . | . . . . . . . Pick Up 85 | 8 5 . 10 14 23 25 Fast Attach . | . . . . . . . Attach 46 | 6 . . 3 5 9 23 Detach . | . . . . . . . Swap 36 | . . . 8 8 12 8 Drop 38 | . 1 . 7 9 14 7 Fire 243 | . 4 2 18 65 55 99 Melee . | . . . . . . . Ram 3 | . . . . . . 3 Kick 41 | . . . . 9 19 13 Crush . | . . . . . . . Escape Stasis 9 | . . . . 9 . . Rewire . | . . . . . . . Trap . | . . . . . . . Miscellaneous . | . . . . . . . Route ------- -11/Scrapyard -10/Materials -10/Mines -9/Materials -9/Storage -8/Materials -7/Factory History --------- Turn | Location | Event 9 | -11/Scrapyard | Discovered new exit (range 16) 63 | -11/Scrapyard | Entered Materials 308 | -10/Materials | Discovered new exit (range 15) 313 | -10/Materials | Build established: Mutant 331 | -10/Materials | Entered Mines 332 | -10/Mines | Learned location of Storage (-9) 359 | -10/Mines | Assembled infested the area 418 | -10/Mines | Discovered new exit (range 7) 433 | -10/Mines | Entered Materials 433 | -9/Materials | Evolved 2 slots: Power x1, Utility x1 913 | -9/Materials | Discovered new exit (range 3) 924 | -9/Materials | Entered Storage 934 | -9/Storage | Assisted by bots powering up and referring to "LRC-V3" 1409 | -9/Storage | Learned location of Armory (-4) 1813 | -9/Storage | Lost 3 parts (1n2u) 1966 | -9/Storage | Discovered new exit (range 15) 2003 | -9/Storage | Entered Materials 2003 | -8/Materials | Evolved 2 slots: Utility x1, Weapon x1 2011 | -8/Materials | Lost 3 parts (1n2w) 2347 | -8/Materials | Lost 3 parts (1p2w) 2474 | -8/Materials | Lost 3 parts (1p2w) 2574 | -8/Materials | Discovered new exit (range 16) 2595 | -8/Materials | Identified exit to Factory 2596 | -8/Materials | Entered Factory 2596 | -7/Factory | Evolved 2 slots: Propulsion x1, Utility x1 3110 | -7/Factory | Lost 4 parts (2p1n1w) 3170 | -7/Factory | Lost 3 parts (1n1u1w) 3299 | -7/Factory | Lost 3 parts (2n1w) 3403 | -7/Factory | Core integrity fell below 50% 3417 | -7/Factory | Core integrity fell below 20% 3438 | -7/Factory | Destroyed by S-27 Virus with Autogun Last Messages --------------- R-06 Scavenger collects Sml. Storage Unit. K-01 Serf collects debris. C-30 ARC bursts open, deploying its payload. S-27 Virus unfolds itself. Imp. Light Cannon destroyed. Lgt. Ion Engine destroyed. K-01 Serf collects debris. Nuclear Core destroyed. Broken Imp. Heat Sink destroyed. Acquired 55 matter. Slammed into S-27 Virus. Destabilizing: System interference. Adv. Signal Interpreter temporarily disabled. Slammed into S-27 Virus. Acquired 38 matter. Acquired Carbon-fiber Leg. Sml. Storage Unit destroyed. Acquired Arc Projector. U-05 Engineer builds a Door. Acquired Nuclear Core. Map ----- +----------------------------------------------------+ | ???????????????# = # """ """ # #??????????# | | ???????????????# % # """ """ # ???????????# | | ??????########## = # ? # ???????????# | | ????? ########?##### ???????????? | | ????? ? ???????????? | | ????? ##/####??????? ???????????? | | ????? %#??? ???????? ???????????? | | ????? #??? "???????? ???????????? | | ??############## #?? "????????????????????? | | ??# # #? ?????????????????????? | | ??# # # [ ?? ???????????????????? | | ??# # # ""???????????????????? | | ??# """ !! + + ""???????????????????? | | ??# """ !! # #?????????????????????????? | | ??# """ !! # #?????????????????????????? | | ??# # #?????????????????????????? | | ??# # ! #?????????????????????????? | | ??############## #?????????????????????????? | | ????????######## ##############????????????? | | ?????? # #????????????? | | ????? # #????????????? | | ?????? !+ = #????????????? | | ?????? [#Y #????????????? | | ?????? #s #????????????? | | ????? # s #????????????? | | ?????? % #s@ #????????????? | | ??????#####/############ #????????????? | | ????????? ???????????# #????????????? | | ????????? ????????????# [ #????????????? | | ?????????"?????????????# #????????????? | | ???????????????????????# #????????????? | | ???????????????????????###u##########????????????? | | ?????????????????????????? #?????????????????????? | | ?????????????????????????? #?????????????????????? | | ??????????????????????????k#?????????????????????? | | ??????????????????????????r#?????????????????????? | | ?????????????????????????? #?????????????????????? | | ?????????????????????????? #?????????????????????? | | ?????????????????????????????????????????????????? | | ?????????????????????????????????????????????????? | | ?????????????????????????????????????????????????? | | ?????????????????????????????????????????????????? | | ?????????????????????????????????????????????????? | | ?????????????????????????????????????????????????? | | ?????????????????????????????????????????????????? | | ?????????????????????????????????????????????????? | | ?????????????????????????????????????????????????? | | ?????????????????????????????????????????????????? | | ?????????????????????????????????????????????????? | | ?????????????????????????????????????????????????? | +----------------------------------------------------+ Best States ------------- Heat Dissipation 62 Energy Generation 23 Energy Capacity 445 Matter Stores 300 Matter Capacity 300 Sight Range 16 Terrain Scan Density 10 Armor Coverage 150 Evasion (%) 42 Armor Integrity Analysis 33 Recoil Reduction 2 Item Schematics ----------------- None Robot Schematics ------------------ None Fabricated ------------ Nothing Alien Tech Used ----------------- None Achievements -------------- Backstab Challenges ------------ None Game ------ Seed CentriumCouplerPerforator Manual? 0 Play Time 00:48:26 Cumulative 17.0 hours Start 2021.07.18 @ 00:56:19 End 2021.07.18 @ 01:44:01 Sessions 1 Manual Loads 0 Difficulty Rogue Special Mode None Game No. 33 Rogue 33 Adventurer 0 Explorer 0 Win Type - Total 0 Types 0/0/0/0/0/0/0/0/0 Lore% 23 Gallery% 24 Achievement% 18 Wizard Run 0 Options --------- ASCII 0 Keyboard 0 Movement Mouse Keybinds 0 Fullscreen 2 Font 20/Terminus Map View 66x50 Tactical HUD 0 Map Filters NONE Filters NONE Steam 1 RUN: 45917ad3-af06-4604-9228-f878c333846b